bitfinex-derivatives/quotes_SOLF0:USTF0_20250909
["timestamp","ask_amount","ask_price","bid_price","bid_amount"]
[1757402569301,116.85,219.48,219.41,4.15988816]
[1757402569503,7.08346178,219.46,219.43,7.28]
[1757402571207,0.03346178,219.46,219.43,7.28]
[1757402571407,7.05,219.45,219.42,0.02937722]
[1757402572096,0.03346178,219.46,219.43,7.28]
[1757402573409,7.08346178,219.46,219.43,7.28]
[1757402576009,7.05,219.45,219.42,0.02937722]
[1757402576209,7.05,219.45,219.43,4.15250356]
[1757402576410,7.05,219.45,219.42,0.02937722]
[1757402576707,0.03346178,219.46,219.44,7.28]
[1757402577310,7.08346178,219.46,219.44,7.28]
[1757402578413,7.05,219.45,219.42,7.30937722]
[1757402580212,7.05,219.45,219.42,0.02937722]
[1757402580513,7.05,219.45,219.42,7.30937722]
[1757402580909,115.01346178,219.46,219.43,7.28]
[1757402581104,122.06346178,219.46,219.43,7.28]
[1757402584614,7.05,219.45,219.42,7.30937722]
[1757402585314,115.01346178,219.46,219.42,7.30937722]
[1757402585619,8.95178795,219.43,219.42,0.02937722]
[1757402586918,50.13178795,219.43,219.42,0.02937722]
[1757402587117,7.05,219.43,219.42,0.02937722]
[1757402587320,86.89,219.43,219.42,0.02937722]
[1757402588018,121.97,219.43,219.42,0.02937722]
[1757402589611,1.90178795,219.45,219.42,7.30937722]
[1757402589612,7.05,219.45,219.42,7.30937722]
[1757402589813,114.92,219.44,219.42,7.30937722]
[1757402591122,7.05,219.43,219.42,0.02937722]
[1757402593220,1.90178795,219.44,219.42,0.02937722]
[1757402593426,33.38,219.44,219.42,0.02937722]
[1757402593626,33.38,219.44,219.42,7.49937722]
[1757402593826,33.38,219.44,219.42,0.02937722]
[1757402594020,33.38,219.44,219.43,7.47]
[1757402595220,33.38,219.44,219.42,0.02937722]
[1757402596926,41.07,219.44,219.42,0.02937722]
[1757402598525,7.69,219.44,219.42,0.02937722]
[1757402598731,7.69,219.45,219.42,0.02937722]
[1757402599027,0.03346178,219.46,219.42,0.02937722]
[1757402599333,9.59178795,219.45,219.42,0.02937722]
[1757402599734,9.59178795,219.43,219.42,0.02937722]
[1757402600232,10.05178795,219.43,219.31,7.47]
[1757402600432,7.69,219.38,219.32,4.15119933]
[1757402600728,23.69,219.39,219.33,4.15119933]
[1757402600933,7.69,219.38,219.34,4.15119933]
[1757402601131,16.0,219.39,219.35,4.15119933]
[1757402601333,7.69,219.38,219.31,7.47]
[1757402601633,7.72056914,219.38,219.32,4.15207185]
[1757402601831,1.90178795,219.37,219.33,4.15207185]
[1757402602134,7.69,219.36,219.29,1.90178795]
[1757402602335,7.69,219.36,219.3,4.15241357]
[1757402602537,1.93660335,219.37,219.31,4.15241357]
[1757402602736,1.93660335,219.37,219.32,4.15241357]
[1757402603034,7.69,219.36,219.27,9.37178795]
[1757402603234,7.69,219.36,219.28,7.85043194]
[1757402603436,7.69,219.36,219.29,4.15302328]
[1757402603736,9.59178795,219.36,219.3,4.15302328]
[1757402603933,7.69,219.35,219.31,4.15302328]
[1757402604131,0.0348154,219.37,219.32,4.15287856]
[1757402604336,0.0348154,219.37,219.26,1.90178795]
[1757402604337,9.59178795,219.33,219.26,1.90178795]
[1757402604531,7.69,219.33,219.27,15.31948627]
[1757402604730,7.69,219.33,219.29,7.47]
[1757402604934,7.69,219.33,219.3,4.1521288]
[1757402605132,7.72260586,219.32,219.31,4.1521288]
[1757402606334,7.72260586,219.32,219.26,1.90178795]
[1757402606639,7.72260586,219.32,219.28,7.47]
[1757402606833,7.72260586,219.32,219.29,4.15152284]
[1757402607027,7.72260586,219.32,219.3,4.15152284]
[1757402607228,7.72260586,219.32,219.28,7.47]
[1757402607432,7.72260586,219.32,219.29,4.15095619]
[1757402607638,7.72260586,219.32,219.3,4.15095619]
[1757402607835,7.72260586,219.32,219.28,7.47]
[1757402608035,7.72260586,219.32,219.29,4.15095619]
[1757402608231,7.72260586,219.32,219.3,4.15095619]
[1757402608539,7.72260586,219.32,219.28,7.47]
[1757402608739,0.03260586,219.32,219.29,11.62001655]
[1757402609040,0.03260586,219.32,219.3,4.15001655]
[1757402609234,0.03260586,219.32,219.29,7.47]
[1757402609541,7.69,219.31,219.3,4.14899277]
[1757402610442,7.69,219.31,219.26,1.90178795]
[1757402610642,7.69,219.31,219.28,7.47]
[1757402610939,0.03260586,219.32,219.29,11.61797514]
[1757402611136,0.03260586,219.32,219.3,11.61797514]
[1757402611339,0.03260586,219.32,219.31,4.14797514]
[1757402612238,0.03260586,219.32,219.27,7.47]
[1757402612443,0.03260586,219.32,219.29,7.47]
[1757402612645,0.03260586,219.32,219.3,4.14648806]
[1757402612939,0.03260586,219.32,219.31,11.61648901]
[1757402613335,0.03260586,219.32,219.31,15.30810716]
[1757402613637,0.03260586,219.32,219.31,4.14648901]
[1757402614239,0.03260586,219.32,219.31,4.12429571]
[1757402621351,0.03260586,219.32,219.31,11.59429571]
[1757402622251,0.03260586,219.32,219.31,7.47]
[1757402622451,0.03260586,219.32,219.31,11.59524638]
[1757402624654,0.03260586,219.32,219.31,4.12524638]
[1757402625051,0.03260586,219.32,219.31,11.75524638]
[1757402625250,0.03260586,219.32,219.31,4.12524638]
[1757402627056,0.03260586,219.32,219.31,11.75524638]
[1757402634458,0.03260586,219.32,219.31,7.63]
[1757402634664,0.03260586,219.32,219.31,11.75939642]
[1757402636768,9.59439381,219.32,219.27,7.63]
[1757402636963,9.56178795,219.3,219.28,4.13148]
[1757402637164,9.56178795,219.3,219.27,7.63]
[1757402637364,7.66,219.3,219.28,4.13125293]
[1757402637564,7.66,219.3,219.23,7.63]
[1757402637763,0.03260586,219.32,219.25,7.63]
[1757402637969,0.03260586,219.32,219.27,7.63]
[1757402638171,38.74178795,219.36,219.29,7.63]
[1757402638466,0.03083314,219.32,219.3,4.13122586]
[1757402638669,0.03083314,219.32,219.31,4.13122586]
[1757402639564,0.03083314,219.32,219.31,11.76122586]
[1757402639766,0.03083314,219.32,219.31,4.13122586]
[1757402640167,0.03083314,219.32,219.31,11.76122586]
[1757402640771,0.03083314,219.32,219.31,4.13122586]
[1757402641164,7.69083314,219.32,219.31,4.13122586]
[1757402641360,7.66,219.31,219.28,7.63]
[1757402641561,7.66,219.31,219.29,4.13512804]
[1757402641762,7.66,219.31,219.28,7.63]
[1757402641965,7.66,219.31,219.29,4.13514159]
[1757402642166,7.66,219.31,219.28,7.63]
[1757402642167,7.66,219.31,219.3,4.13514159]
[1757402643064,1.93262109,219.32,219.3,11.76514159]
[1757402643271,9.59262109,219.32,219.31,4.13514159]
[1757402644475,7.69083314,219.32,219.31,4.13514159]
[1757402653069,122.29083314,219.32,219.31,4.13514159]
[1757402653480,7.69083314,219.32,219.31,4.13514159]
[1757402653675,122.29083314,219.32,219.31,4.13514159]
[1757402655379,122.29083314,219.32,219.31,11.85514159]
[1757402655380,0.03083314,219.32,219.31,11.85514159]
[1757402655574,114.63083314,219.32,219.31,4.13514159]
[1757402655979,114.61083314,219.32,219.31,4.13514159]
[1757402656677,121.70083314,219.32,219.31,4.13514159]
[1757402660881,7.12083314,219.32,219.31,4.13514159]
[1757402661077,121.68083314,219.32,219.31,4.13514159]
[1757402664480,121.68083314,219.32,219.31,4.16432585]
[1757402666488,7.12083314,219.32,219.31,4.16432585]
[1757402666687,121.64083314,219.32,219.31,4.16432585]
[1757402673584,7.12083314,219.32,219.31,4.16432585]
[1757402673790,115.38083314,219.32,219.31,4.16432585]
[1757402674195,115.38083314,219.32,219.27,7.72]
[1757402674395,115.38083314,219.32,219.28,3.70858978]
[1757402674597,108.29083314,219.32,219.29,3.70858978]
[1757402674803,108.29083314,219.32,219.3,3.70858978]
[1757402675004,108.29083314,219.32,219.24,3.8417978]
[1757402675204,108.29083314,219.32,219.25,3.70863594]
[1757402675404,108.29083314,219.32,219.26,3.70863594]
[1757402675603,108.29083314,219.32,219.27,3.70863594]
[1757402675804,108.29083314,219.32,219.28,3.70863594]
[1757402676106,108.29083314,219.32,219.29,3.70863594]
[1757402676305,108.29083314,219.32,219.3,3.70863594]
[1757402676501,108.29083314,219.32,219.24,3.8417978]
[1757402676706,108.29083314,219.32,219.26,7.72]
[1757402676900,108.29083314,219.32,219.27,3.70905893]
[1757402677096,7.09,219.31,219.28,11.42905893]
[1757402677300,7.09,219.31,219.29,3.70905893]
[1757402677501,7.09,219.31,219.3,3.70905893]
[1757402678407,115.38083314,219.32,219.3,11.42905893]
[1757402678607,108.29083314,219.32,219.25,7.72]
[1757402678906,108.29083314,219.32,219.26,3.70979191]
[1757402679100,7.09,219.31,219.28,7.72]
[1757402679305,7.09,219.31,219.29,3.70979191]
[1757402679499,7.09,219.31,219.3,3.70979191]
[1757402681107,0.03083314,219.32,219.3,3.70979191]
[1757402681312,7.12083314,219.32,219.31,3.70979191]
[1757402682813,7.12083314,219.32,219.24,7.72]
[1757402683011,7.12083314,219.32,219.26,7.72]
[1757402683310,0.03083314,219.32,219.27,3.7115382]
[1757402683516,7.65,219.31,219.29,7.68]
[1757402683810,7.65,219.31,219.3,3.7115382]
[1757402692617,7.65,219.31,219.24,7.68]
[1757402692818,7.65,219.31,219.25,3.71172372]
[1757402693019,0.03083314,219.32,219.26,3.71172372]
[1757402693222,0.03083314,219.32,219.27,3.71172372]
[1757402693414,7.65,219.31,219.28,3.71172372]
[1757402693716,7.65,219.31,219.29,3.71172372]
[1757402693907,7.65,219.31,219.24,7.68]
[1757402694110,7.65,219.31,219.25,3.71174092]
[1757402694319,0.03083314,219.32,219.26,3.71174092]
[1757402694514,7.65,219.31,219.27,3.71174092]
[1757402694716,0.03083314,219.32,219.28,3.71174092]
[1757402695010,0.03083314,219.32,219.29,3.71174092]
[1757402695215,0.03083314,219.32,219.27,7.68]
[1757402695411,7.65,219.31,219.28,3.71177585]
[1757402695616,0.03083314,219.32,219.29,3.71177585]
[1757402695818,0.03083314,219.32,219.27,7.68]
[1757402696019,7.65,219.31,219.28,3.71177585]
[1757402696219,0.03083314,219.32,219.29,3.71177585]
[1757402696415,0.03083314,219.32,219.27,7.68]
[1757402696615,0.03083314,219.32,219.28,3.71179359]
[1757402696815,7.65,219.31,219.29,3.71179359]
[1757402697015,7.65,219.31,219.27,7.68]
[1757402697215,0.03083314,219.32,219.28,3.71179359]
[1757402697421,0.03083314,219.32,219.29,3.71179359]
[1757402697621,7.65,219.31,219.27,7.68]
[1757402697815,7.65,219.31,219.28,3.71181152]
[1757402698016,7.65,219.31,219.29,3.71181152]
[1757402698212,7.65,219.31,219.27,7.68]
[1757402698420,7.65,219.31,219.28,3.71182965]
[1757402698621,0.03083314,219.32,219.29,3.71182965]
[1757402698921,7.65,219.31,219.24,7.68]
[1757402699116,7.65,219.31,219.25,3.71182965]
[1757402699417,7.65,219.31,219.21,145.6360809]
[1757402699418,0.03083314,219.32,219.27,7.68]
[1757402699623,7.65,219.31,219.28,3.71182965]
[1757402699815,7.65,219.31,219.29,3.71182965]
[1757402700017,7.65,219.31,219.27,7.68]
[1757402700219,7.65,219.31,219.28,11.3918136]
[1757402700518,0.03083314,219.32,219.29,3.7118136]
[1757402700719,7.65,219.31,219.28,7.68]
[1757402700925,7.65,219.31,219.29,3.71182484]
[1757402701223,7.65,219.31,219.28,7.68]
[1757402701422,7.65,219.31,219.29,3.71182735]
[1757402701623,7.65,219.31,219.24,7.68]
[1757402701816,7.65,219.31,219.25,3.71182735]
[1757402702018,7.65,219.31,219.26,3.71182735]
[1757402702323,7.65,219.31,219.27,11.39182735]
[1757402702524,0.03083314,219.32,219.28,3.71182735]
[1757402702725,7.65,219.31,219.29,3.71182735]
[1757402703026,7.65,219.31,219.24,7.68]
[1757402703224,7.65,219.31,219.25,3.71184617]
[1757402703421,7.68083314,219.32,219.27,7.68]
[1757402703623,7.65,219.31,219.28,3.71184617]
[1757402703825,0.03083314,219.32,219.29,3.71184617]
[1757402704128,0.03083314,219.32,219.31,7.68]
[1757402704321,0.03083314,219.32,219.31,11.39184617]
[1757402705424,0.03083314,219.32,219.31,3.71184617]
[1757402705623,0.03083314,219.32,219.31,11.39184617]
[1757402707929,0.03083314,219.32,219.31,13.7556739]
[1757402708625,7.65,219.42,219.32,7.68]
[1757402708927,7.65,219.42,219.35,9.58382773]
[1757402709129,7.65,219.42,219.36,3.71184617]
[1757402709424,7.65,219.42,219.35,9.58382773]
[1757402709618,7.65,219.42,219.36,3.70357524]
[1757402709818,7.65,219.42,219.35,9.58382773]
[1757402710023,7.65,219.42,219.36,3.70357524]
[1757402710219,7.65,219.42,219.35,7.68]
[1757402710423,7.65,219.42,219.36,3.70215903]
[1757402710623,7.65,219.42,219.35,7.68]
[1757402710824,7.65,219.42,219.36,3.70211091]
[1757402711027,7.65,219.42,219.35,7.68]
[1757402711728,9.55382773,219.42,219.35,7.68]
[1757402713828,123.69382773,219.42,219.35,7.68]
[1757402714025,121.79,219.42,219.35,7.68]
[1757402714225,123.69382773,219.42,219.35,7.68]
[1757402714430,121.79,219.42,219.35,7.68]
[1757402714725,123.69382773,219.42,219.35,7.68]
[1757402716628,123.69382773,219.42,219.36,3.69745689]
[1757402716829,123.69382773,219.42,219.35,7.68]
[1757402717030,123.69382773,219.42,219.36,3.69745698]
[1757402717230,123.69382773,219.42,219.35,7.68]
[1757402717432,123.69382773,219.42,219.33,1.90382773]
[1757402717632,123.69382773,219.42,219.34,3.69700934]
[1757402717832,123.69382773,219.42,219.33,1.90382773]
[1757402718028,123.69382773,219.42,219.34,3.69700934]
[1757402718229,123.69382773,219.42,219.33,1.90382773]
[1757402718527,7.1,219.39,219.34,3.69665821]
[1757402718728,7.1,219.37,219.32,7.22]
[1757402718924,1.90382773,219.38,219.32,7.22]
[1757402719127,9.00382773,219.38,219.32,7.22]
[1757402719323,1.90382773,219.4,219.32,7.22]
[1757402719529,114.06,219.4,219.34,7.22]
[1757402720033,121.16,219.41,219.34,7.22]
[1757402722538,7.1,219.41,219.34,7.22]
[1757402722837,121.16,219.41,219.34,7.22]
[1757402723035,121.14,219.41,219.34,7.22]
[1757402724132,7.1,219.44,219.39,1.90382773]
[1757402724332,7.1,219.44,219.4,7.22]
[1757402724542,114.02,219.45,219.4,7.22]
[1757402724844,7.1,219.44,219.4,9.12382773]
[1757402725135,7.1,219.44,219.36,7.22]
[1757402725340,114.02,219.45,219.36,9.12382773]
[1757402725341,115.92382773,219.45,219.36,9.12382773]
[1757402725539,1.90382773,219.45,219.36,9.12382773]
[1757402725737,26.66,219.44,219.36,9.12382773]
[1757402725941,7.1,219.43,219.36,9.12382773]
[1757402726442,58.66,219.42,219.36,9.12382773]
[1757402728445,7.1,219.43,219.36,9.12382773]
[1757402728643,78.2,219.42,219.36,9.12382773]
[1757402728938,96.72,219.42,219.38,1.90382773]
[1757402729144,96.72,219.42,219.36,1.90382773]
[1757402729441,7.1,219.4,219.36,1.90382773]
[1757402729643,7.1,219.39,219.36,1.90382773]
[1757402729843,111.88,219.4,219.36,1.90382773]
[1757402730142,115.8,219.39,219.32,7.22]
[1757402730342,7.1,219.37,219.29,9.12382773]
[1757402730543,7.1,219.37,219.3,3.6930524]
[1757402730749,111.82,219.36,219.31,3.6930524]
[1757402731058,7.1,219.36,219.29,7.22]
[1757402731245,30.76,219.35,219.3,3.69352183]
[1757402731547,30.76,219.35,219.29,9.12382773]
[1757402731548,37.86,219.35,219.29,9.12382773]
[1757402731738,1.90382773,219.38,219.3,3.69344567]
[1757402731944,7.1,219.36,219.29,9.12382773]
[1757402732144,7.1,219.36,219.3,3.69344654]
[1757402732345,7.1,219.36,219.29,9.12382773]
[1757402732545,7.1,219.36,219.3,3.69362084]
[1757402732746,7.1,219.36,219.29,9.12382773]
[1757402732945,7.1,219.36,219.3,3.69362084]
[1757402733244,7.1,219.33,219.26,141.48939877]
[1757402733439,7.1,219.33,219.27,3.69409217]
[1757402733642,7.1,219.33,219.28,3.69409217]
[1757402733837,7.1,219.33,219.26,141.48939877]
[1757402734038,7.1,219.33,219.27,3.69428387]
[1757402734243,1.90382773,219.34,219.26,141.48939877]
[1757402734244,1.90382773,219.34,219.28,3.69428387]
[1757402734444,7.1,219.33,219.26,141.48939877]
[1757402734640,7.1,219.33,219.27,3.69445402]
[1757402734944,1.90382773,219.34,219.28,3.69445402]
[1757402735145,26.24,219.33,219.27,9.12382773]
[1757402735350,26.24,219.33,219.28,3.6946759]
[1757402735649,58.26,219.33,219.27,1.90382773]
[1757402735850,7.1,219.33,219.29,1.90382773]
[1757402736050,40.06,219.35,219.31,7.22]
[1757402736244,7.1,219.34,219.31,7.22]
[1757402736449,40.06,219.35,219.29,1.90382773]
[1757402736748,32.96,219.35,219.3,3.69471958]
[1757402736950,7.1,219.33,219.27,7.22]
[1757402737150,7.1,219.34,219.28,3.69471958]
[1757402737349,39.42,219.35,219.29,3.69471958]
[1757402737548,70.72,219.35,219.28,7.22]
[1757402737748,70.72,219.35,219.29,3.69517458]
[1757402737948,70.72,219.35,219.28,7.22]
[1757402738148,70.72,219.35,219.29,3.69517458]
[1757402738346,70.72,219.35,219.28,7.22]
[1757402738552,70.72,219.35,219.29,3.69561488]
[1757402738748,70.72,219.35,219.28,9.12382773]
[1757402738948,70.72,219.35,219.29,3.69561488]
[1757402739150,70.72,219.35,219.28,9.12382773]
[1757402739451,70.72,219.35,219.29,3.69607548]
[1757402739650,70.72,219.35,219.28,9.12382773]
[1757402739849,70.72,219.35,219.29,3.69607548]
[1757402740049,70.72,219.35,219.28,9.12382773]
[1757402740249,70.72,219.35,219.29,3.69621648]
[1757402740550,1.90382773,219.36,219.3,3.69621648]
[1757402740750,7.1,219.35,219.28,9.12382773]
[1757402740955,7.66449179,219.49,219.35,7.22]
[1757402741148,7.66449179,219.57,219.48,1.90382773]
[1757402741348,7.1,219.65,219.57,7.22]
[1757402741547,7.1,219.65,219.59,1.90382773]
[1757402741744,7.1,219.65,219.57,7.22]
[1757402741745,7.1,219.71,219.62,1.90382773]
[1757402742048,7.1,219.71,219.63,9.77633057]
[1757402742253,7.1,219.71,219.57,24.52]
[1757402742254,7.1,219.71,219.65,1.90382773]
[1757402742453,7.1,219.75,219.66,9.77633057]
[1757402742652,42.08,219.76,219.67,9.77633057]
[1757402742955,7.1,219.75,219.71,1.90382773]
[1757402743148,7.1,219.75,219.64,7.22]
[1757402743149,7.1,219.75,219.72,10.19267561]
[1757402743355,42.08,219.76,219.73,10.19267561]
[1757402743648,7.64,219.75,219.74,10.19267561]
[1757402743848,1.90382773,219.83,219.74,10.19267561]
[1757402744054,116.76,219.83,219.75,12.09650334]
[1757402744248,7.64,219.82,219.76,10.19267561]
[1757402744551,7.64,219.82,219.77,10.19267561]
[1757402744753,7.64,219.82,219.78,10.19267561]
[1757402744953,116.76,219.83,219.79,10.19267561]
[1757402745148,116.76,219.83,219.8,10.19267561]
[1757402745349,7.64,219.82,219.81,10.19267561]
[1757402745853,126.30382773,219.82,219.81,10.19267561]
[1757402746453,126.76382773,219.82,219.69,1.90382773]
[1757402746652,7.64,219.72,219.61,7.52]
[1757402746955,7.64,219.72,219.63,1.90382773]
[1757402747154,9.54382773,219.72,219.63,1.90382773]
[1757402747745,9.54382773,219.72,219.62,1.90382773]
[1757402748357,1.90382773,219.7,219.61,7.52]
[1757402748556,7.64,219.69,219.61,7.52]
[1757402750549,1.90382773,219.68,219.57,1.90382773]
[1757402750757,1.90382773,219.68,219.56,7.52]
[1757402750758,1.90382773,219.66,219.56,9.42382773]
[1757402752257,22.1,219.73,219.53,140.76358849]
[1757402752258,9.54382773,219.62,219.53,140.76358849]
[1757402752449,9.54382773,219.62,219.54,3.79761948]
[1757402752753,9.54382773,219.62,219.53,140.76358849]
[1757402753148,9.54382773,219.62,219.52,7.52]
[1757402753353,1.90382773,219.6,219.52,7.52]
[1757402754060,9.54382773,219.62,219.53,1.90382773]
[1757402754257,7.64,219.62,219.53,1.90382773]
[1757402754461,7.64,219.62,219.52,7.52]
[1757402758465,7.64,219.62,219.53,4.54858683]
[1757402758660,7.64,219.62,219.54,4.54858683]
[1757402758858,7.64,219.62,219.52,7.52]
[1757402759058,7.64,219.62,219.46,137.88590098]
[1757402759059,7.64,219.62,219.53,4.39811035]
[1757402759265,7.64,219.62,219.46,137.88590098]
[1757402759266,7.64,219.62,219.54,11.91811035]
[1757402759461,7.64,219.62,219.55,4.39811035]
[1757402759653,7.64,219.62,219.54,7.52]
[1757402759857,7.64,219.62,219.55,4.39727454]
[1757402760157,7.64,219.62,219.47,7.52]
[1757402760354,7.64,219.62,219.49,7.52]
[1757402760560,53.5,219.62,219.51,7.52]
[1757402760854,7.64,219.62,219.52,4.39758178]
[1757402761059,7.64,219.62,219.53,4.39758178]
[1757402761259,7.64,219.62,219.54,4.39758178]
[1757402761460,7.64,219.62,219.51,7.52]
[1757402761656,7.64,219.62,219.52,4.39748274]
[1757402761858,7.64,219.62,219.53,4.39748274]
[1757402762058,7.64,219.62,219.54,4.39748274]
[1757402762261,7.64,219.62,219.51,7.52]
[1757402762460,7.64,219.62,219.53,7.52]
[1757402762857,44.36,219.68,219.54,4.39980298]
[1757402763065,44.36,219.68,219.56,7.52]
[1757402763264,7.64,219.67,219.57,4.39980298]
[1757402763460,7.64,219.67,219.58,4.39980298]
[1757402763656,7.64,219.67,219.59,4.39980298]
[1757402763863,7.64,219.67,219.56,7.52]
[1757402764063,7.64,219.67,219.57,8.80146274]
[1757402764265,7.64,219.67,219.58,4.62754465]
[1757402764566,7.64,219.67,219.59,4.62754465]
[1757402764864,7.64,219.67,219.56,7.52]
[1757402765171,12.51042589,219.67,219.57,8.80330941]
[1757402765463,12.51042589,219.67,219.58,4.62851851]
[1757402765666,12.51042589,219.67,219.55,7.52]
[1757402765667,12.51042589,219.67,219.59,4.62851851]
[1757402765866,12.51042589,219.67,219.6,4.6290308]
[1757402766067,12.51042589,219.67,219.55,7.52]
[1757402766267,12.51042589,219.67,219.56,8.80549927]
[1757402766563,12.51042589,219.67,219.57,8.80549927]
[1757402766564,7.64,219.67,219.57,8.80549927]
[1757402766770,7.64,219.67,219.58,8.80549927]
[1757402766964,7.64,219.67,219.59,4.62966835]
[1757402767165,7.64,219.67,219.6,4.62966835]
[1757402767365,7.64,219.67,219.55,7.52]
[1757402767565,7.64,219.67,219.56,8.80753102]
[1757402767766,7.64,219.67,219.57,8.80753102]
[1757402767968,7.64,219.67,219.58,8.80753102]
[1757402768169,7.64,219.67,219.59,4.63073509]
[1757402768472,7.64,219.72,219.6,8.80752591]
[1757402768771,7.64,219.72,219.61,8.80752591]
[1757402768971,7.64,219.72,219.62,8.80752591]
[1757402769168,7.64,219.72,219.63,4.63107461]
[1757402769364,7.64,219.72,219.64,4.63107461]
[1757402769574,7.64,219.72,219.59,7.52]
[1757402769765,7.64,219.72,219.6,8.80225059]
[1757402769965,7.64,219.72,219.61,8.80225059]
[1757402770169,7.64,219.72,219.62,8.80225059]
[1757402770370,7.64,219.72,219.63,4.62800866]
[1757402770571,7.64,219.72,219.64,4.62800866]
[1757402770772,7.64,219.72,219.59,7.52]
[1757402770972,7.64,219.72,219.6,4.62698812]
[1757402771175,7.64,219.72,219.61,8.80030741]
[1757402771369,7.64,219.72,219.62,8.80030741]
[1757402771670,7.64,219.72,219.63,4.62698812]
[1757402771967,7.64,219.72,219.64,4.62698812]
[1757402772174,7.64,219.72,219.59,7.52]
[1757402772376,7.64,219.72,219.6,8.80046488]
[1757402772573,7.64,219.72,219.61,8.80046488]
[1757402772874,7.64,219.72,219.62,8.80046488]
[1757402773174,7.64,219.72,219.63,4.62707122]
[1757402773372,7.64,219.72,219.59,7.52]
[1757402773568,7.64,219.72,219.6,8.80042314]
[1757402773769,7.64,219.72,219.61,8.80042314]
[1757402773970,7.64,219.72,219.62,4.62703535]
[1757402774273,2.96638823,219.71,219.63,4.62703535]
[1757402774574,2.96638823,219.71,219.59,7.52]
[1757402774867,7.09,219.7,219.6,8.80242126]
[1757402775074,7.09,219.7,219.61,4.17433532]
[1757402775271,7.09,219.7,219.62,4.17433532]
[1757402775464,7.09,219.7,219.59,7.52]
[1757402775669,7.09,219.7,219.6,8.65325685]
[1757402775872,7.09,219.7,219.61,8.65325685]
[1757402776062,7.09,219.7,219.62,4.17512557]
[1757402776263,7.09,219.7,219.59,7.52]
[1757402776467,7.09,219.7,219.6,8.65569508]
[1757402776673,7.09,219.7,219.61,8.65569508]
[1757402776874,7.09,219.7,219.62,4.17630199]
[1757402777074,7.09,219.7,219.62,7.49]
[1757402777270,7.09,219.7,219.63,4.17786503]
[1757402777481,313.31,219.74,219.65,7.49]
[1757402777670,115.88,219.73,219.66,4.17483846]
[1757402777871,115.88,219.73,219.65,7.49]
[1757402778076,115.88,219.73,219.66,4.17481978]
[1757402778381,115.88,219.73,219.67,4.17740291]
[1757402778579,10.05638823,219.72,219.56,7.49]
[1757402778773,10.05638823,219.72,219.58,7.49]
[1757402778974,10.05638823,219.72,219.6,7.49]
[1757402779176,10.05638823,219.72,219.61,12.49276011]
[1757402779374,10.05638823,219.72,219.62,12.49276011]
[1757402779574,10.05638823,219.72,219.63,8.62003922]
[1757402779774,10.05638823,219.72,219.64,8.62003922]
[1757402779977,10.05638823,219.72,219.65,4.17801107]
[1757402780182,10.05638823,219.72,219.66,4.17801107]
[1757402780373,2.96638823,219.72,219.67,4.17801107]
[1757402780568,7.09,219.71,219.6,7.49]
[1757402780774,7.09,219.71,219.61,12.51445731]
[1757402780975,7.09,219.71,219.62,12.51445731]
[1757402781173,115.88,219.73,219.63,12.51723483]
[1757402781174,2.96638823,219.69,219.63,12.51723483]
[1757402781379,2.96638823,219.69,219.64,8.63508117]
[1757402781583,10.05638823,219.66,219.56,7.49]
[1757402781772,7.09,219.64,219.57,12.53049139]
[1757402781973,7.09,219.64,219.58,8.64620489]
[1757402782172,7.09,219.64,219.59,8.64620489]
[1757402782377,7.09,219.64,219.6,8.64620489]
[1757402782576,7.09,219.64,219.61,4.19072231]
[1757402782777,7.09,219.64,219.62,4.19072231]
[1757402782976,7.09,219.64,219.56,7.49]
[1757402783173,7.09,219.64,219.57,12.54901306]
[1757402783377,7.09,219.64,219.58,12.54901306]
[1757402783678,7.09,219.64,219.6,7.49]